Cogmind - Beta 9 @@@ ROGUE MODE // 2019.10.24 @ 15:18:47 Player: Rogon Result: Destroyed by G-34 Mercenary with Small Laser Performance ------------- Evolutions (0) 0 Regions Visited (1) 200 Robots Destroyed (2) 10 Value Destroyed (81) 81 Prototype IDs (0) 0 Alien Tech Used (0) 0 Bonus (0) 0 TOTAL SCORE: 291 Bonus ------- None Cogmind --------- Core Integrity 0/250 Matter 286/300 Energy 250/250 System Corruption 1% Temperature Cool (6) Location -10/Materials Parts ------- Power (1) Ion Engine Propulsion (2) Wheel Compact Wheel Utility (2) Small Storage Unit Weapon (2) Inventory (6) Light Armor Plating Peak State ------------ Power Light Ion Engine Propulsion Compact Wheel Utility Small Storage Unit Light Armor Plating Weapon Medium Laser Light Assault Rifle Inventory Ion Engine Wheel Small Laser [Rating: 6] Favorites ----------- Power Light Ion Engine Engine Light Ion Engine Propulsion Compact Wheel Wheel Compact Wheel Utility Small Storage Unit Storage Small Storage Unit Protection Light Armor Plating Weapon Light Assault Rifle Energy Gun Medium Laser Ballistic Gun Light Assault Rifle Special Weapon Welding Torch Build | -11 -10 ------- Run | Scr Mat Slots Evolved . | . . Power . | . . Propulsion . | . . Utility . | . . Weapon . | . . Parts Attached 13 | 5 8 Power 2 | 1 1 Engine 2 | 1 1 Core . | . . Reactor . | . . Propulsion 2 | 1 1 Treads . | . . Leg . | . . Wheel 2 | 1 1 Hover . | . . Flight . | . . Utility 5 | 1 4 Device . | . . Storage 1 | 1 . Processor . | . . Hackware . | . . Protection 4 | . 4 Artifact . | . . Weapon 4 | 2 2 Energy Gun 2 | 1 1 Energy Cannon . | . . Ballistic Gun 1 | 1 . Ballistic Cannon . | . . Launcher . | . . Special Weapon 1 | . 1 Impact Weapon . | . . Slashing Weapon . | . . Piercing Weapon . | . . Special Melee Weapon . | . . Unidentified Prototypes . | . . Parts Lost 8 | . 8 Power 1 | . 1 Propulsion . | . . Utility 3 | . 3 Weapon 4 | . 4 Highest Loss Streak 4 | . 4 Average Slot Usage (%) 70 | . 70 Engine 12 | . 12 Wheel 16 | . 16 Storage 14 | . 14 Protection 12 | . 12 Energy Gun 8 | . 8 Ballistic Gun 4 | . 4 Naked Turns . | . . Heaviest Build 13 | 10 13 Greatest Support 26 | 16 26 Greatest Overweight (x) . | . . Average Overweight (x) . | . . Largest Inventory Capacity 6 | 6 6 Average Capacity 5 | 5 6 Most Carried 6 | 4 6 Average Carried 3 | 3 3 Final Capacity 6 | . 6 Final Carried 1 | . 1 Class Distribution -------------------- 100% | Mutant Dominant Class ---------------- Mutant | -10/Materials Resources | -11 -10 ----------- Run | Scr Mat Matter Collected 292 | 214 78 Remotely . | . . Salvage Created 95 | . 95 Parts 2 | . 2 Haulers Intercepted . | . . Recyclers Shooed . | . . Parts Field Recycled . | . . Retrieved Matter . | . . Parts Self-Destructed . | . . Prevented . | . . Kills | -11 -10 ------- Run | Scr Mat Combat Hostiles Destroyed 2 | . 2 Guns 2 | . 2 Classes Destroyed 1 | . 1 Grunt 2 | . 2 Best Kill Streak 1 | . 1 Combat Bots Only 1 | . 1 Max Kills in Single Turn 1 | . 1 Gunslinging . | . . Exploded . | . . Melee . | . . Uniques/NPCs Destroyed . | . . Combat | -11 -10 -------- Run | Scr Mat Damage Taken 964 | . 964 Core 250 | . 250 Absorbed by Shields . | . . Core Remaining (%) 100 | 100 . Volleys Fired 45 | . 45 Largest 2 | . 2 Hottest 70 | . 70 Shots Fired 46 | . 46 Gun 45 | . 45 Cannon . | . . Launcher . | . . Special 1 | . 1 Kinetic 22 | . 22 Thermal 24 | . 24 Explosive . | . . Electromagnetic . | . . Robot Hit Streak 8 | . 8 Robot Miss Streak 3 | . 3 Penetration Max . | . . Secondary Targets . | . . Shots Hit Robots 30 | . 30 Core Hits 10 | . 10 Critical Hits . | . . Critical Kills . | . . Critical Parts Destroyed . | . . Melee Attacks . | . . Impact . | . . Slashing . | . . Piercing . | . . Sneak Attacks . | . . Combat Hostiles . | . . Follow-up Attacks . | . . Damage Inflicted 300 | . 300 Guns 286 | . 286 Cannons . | . . Explosions . | . . Melee . | . . Ramming 12 | . 12 Kinetic 116 | . 116 Thermal 172 | . 172 Explosive . | . . Electromagnetic . | . . Impact . | . . Slashing . | . . Piercing . | . . Highest Corruption 1 | . 1 Average Corruption 1 | . 1 Corruption Purged . | . . Overload Shots . | . . Overflow Damage . | . . Projectiles . | . . Explosions . | . . Melee . | . . Knockbacks . | . . Impact . | . . Kinetic . | . . Secondary . | . . Self-Inflicted Damage 6 | . 6 Shots . | . . Rammed 7 | . 7 Targets Rammed 7 | . 7 Kicked . | . . Crushed . | . . Highest Temperature 134 | . 134 Average Temperature 51 | . 51 Received Heat Transfer 528 | . 528 Siege Activations . | . . Robots Corrupted . | . . Combat Hostiles . | . . Parts Fried . | . . Impact Corruptions . | . . Robots Melted . | . . Combat Hostiles . | . . Parts Melted . | . . Heat Transferred 448 | . 448 Parts Sabotaged . | . . Parts Stolen . | . . Parts Stripped . | . . Power Chain Reactions . | . . Missiles Intercepted . | . . Alert | -11 -10 ------- Run | Scr Mat Peak Influence 30 | . 30 Average Influence 8 | . 10 Maximum Alert Level . | . . Low Security (%) 100 | . . Level 1 . | . . Level 2 . | . . Level 3 . | . . Level 4 . | . . Level 5 . | . . High Security . | . . Max Security . | . . Squads Dispatched 2 | . 2 Investigation 1 | . 1 Extermination . | . . Reinforcement 1 | . 1 Assault . | . . Garrison . | . . Intercept . | . . Construction Impeded . | . . Haulers Reinforced . | . . Stealth | -11 -10 --------- Run | Scr Mat Distress Signals . | . . Communications Jammed . | . . Distress Signals . | . . Times Spotted 13 | . 13 Peak Tracking Total 5 | . 5 Tactical Retreats 1 | . 1 Traps | -11 -10 ------- Run | Scr Mat Traps Triggered 1 | . 1 Indirectly . | . . Trap Hack Attempts . | . . Triggered . | . . Disarmed . | . . Reprogrammed . | . . Reused . | . . Traps Extracted . | . . Installed . | . . Triggered . | . . Machines | -11 -10 ---------- Run | Scr Mat Machines Disabled . | . . Max in Single Turn . | . . Machines Sabotaged . | . . Garrisons Compromised . | . . Overloaded Fab Kills . | . . Fab Network Shutdowns . | . . Hacking | -11 -10 --------- Run | Scr Mat Machines Accessed . | . . Terminals . | . . Fabricators . | . . Repair Stations . | . . Recycling Units . | . . Scanalyzers . | . . Garrison Access . | . . Total Hacks . | . . Successful . | . . Failed . | . . Catastrophic . | . . Database Lockouts . | . . Manual . | . . Terminals . | . . Fabricators . | . . Repair Stations . | . . Recycling Units . | . . Scanalyzers . | . . Garrison Access . | . . Terminal Hacks . | . . Fabricator Hacks . | . . Repair Station Hacks . | . . Recycling Unit Hacks . | . . Scanalyzer . | . . Garrison Access Hacks . | . . Unauthorized Hacks . | . . Terminals . | . . Fabricators . | . . Repair Stations . | . . Recycling Units . | . . Scanalyzers . | . . Garrison Access . | . . Data Cores Recovered . | . . Used . | . . Hacking Detections . | . . Full Trace Events . | . . Feedback Events . | . . Feedback Blocked . | . . Robot Schematics Acquired . | . . Robots Built . | . . Matter . | . . Time . | . . Total Robot Build Rating . | . . Part Schematics Acquired . | . . Parts Built . | . . Matter . | . . Time . | . . Total Part Build Rating . | . . Parts Repaired . | . . Time . | . . Parts Recycled . | . . Recycled Matter . | . . Retrieved Matter . | . . Retrieved Components . | . . Parts Scanalyzed . | . . Part Schematics Acquired . | . . Parts Damaged . | . . Bothacking | -11 -10 ------------ Run | Scr Mat Used RIF Installer . | . . Robots Hacked . | . . Non-combat . | . . Combat . | . . Robot Hacks Applied . | . . Relay Couplers Released . | . . Robots Rewired . | . . Allies Hacked . | . . Hacks Repelled . | . . Allies | -11 -10 -------- Run | Scr Mat Total Allies . | . . Largest Group . | . . Highest-Rated Group . | . . Highest-Rated Ally . | . . Total Orders . | . . Ally Attacks . | . . Total Damage . | . . Kills . | . . Allies Corrupted . | . . Allies Melted . | . . Intel | -11 -10 ------- Run | Scr Mat Robot Analysis Total . | . . Derelict Logs Recovered . | . . Drone Launches . | . . Drone Recoveries . | . . Exploration | -11 -10 ------------- Run | Scr Mat Turns Passed 394 | 67 327 Spaces Moved 259 | 48 211 Core 7 | 7 . Treads . | . . Legs . | . . Wheels 252 | 41 211 Hover . | . . Flight . | . . Fastest Speed 50 | 50 90 Average Speed 96 | 92 97 Slowest Speed 100 | 100 100 Overloaded Moves . | . . Propulsion Burnouts . | . . Robots Hopped . | . . Cave-ins Triggered . | . . Exploration Rate (%) 12 | 3 22 Regions Visited 1 Branch Regions . Pre-discovered Areas . | . . Known Exits Taken . | . . Unknown Exits Taken 1 | 1 . Scrap Searched . | . . Spaces Dug . | . . Terrain Destroyed . | . . Melee . | . . Projectile . | . . AOE . | . . Actions | -11 -10 --------- Run | Scr Mat Total 360 | 69 291 Wait 24 | 11 13 Move 258 | 47 211 Hop . | . . Pick Up 12 | 6 6 Fast Attach 2 | 2 . Attach 10 | 3 7 Detach . | . . Swap 1 | . 1 Drop 1 | . 1 Fire 45 | . 45 Melee . | . . Ram 7 | . 7 Kick . | . . Crush . | . . Escape Stasis . | . . Rewire . | . . Trap . | . . Miscellaneous . | . . Route ------- -11/Scrapyard -10/Materials History --------- Turn | Location | Event 23 | -11/Scrapyard | Discovered new exit (range 14) 68 | -11/Scrapyard | Entered Materials 284 | -10/Materials | Core integrity fell below 50% 311 | -10/Materials | Build established: Mutant 327 | -10/Materials | Lost 4 parts (1p2u1w) 390 | -10/Materials | Core integrity fell below 20% 395 | -10/Materials | Destroyed by G-34 Mercenary with Small Laser Last Messages --------------- 00202_ K-01 Serf collects debris. 00218_ Triggered Alarm Trap. 00218_ An alarm sounds. 00218_ ALERT: Alarm triggered, dispatching investigation squad. 00222_ ALERT: Hostiles spotted, dispatching reinforcements to Terminal M004. 00252_ Lgt. Armor Plating destroyed. 00261_ Sml. Laser destroyed. 00261_ Slammed into G-34 Mercenary. 00283_ Lgt. Ion Engine destroyed. 00296_ Lgt. Armor Plating destroyed. 00306_ K-01 Serf collects debris. 00327_ Acquired Lgt. Armor Plating. 00366_ Acquired Welding Torch. 00377_ Slammed into G-34 Mercenary. 00379_ Welding Torch destroyed. 00380_ Slammed into G-34 Mercenary. 00380_ Lgt. Armor Plating destroyed. 00381_ Slammed into G-34 Mercenary. 00381_ Destabilizing: System corrupted (+1). Map ----- +----------------------------------------------------+ | ?????????????????????????????????????? | | ?????????????????????????????????????? | | ?????????????????????????????????????? | | ?????????????????????????????????????? | | ?????????????????????????????????????? | | ?????????????????????????????????????? | | ?????????????????????????????????????? | | ?????????????????????????????????????? | | ?????????????????????????????????????? | | ?????????????????????????????????????? | | ?????????????????????????????????????? | | ?????????????????????????????????????? | | ?????????????????????????????????????? | | ?????????????????????????????????????? | | ?????????????????????????????????????? | | ??????????????????? ##???????????????? | | ??????????##+##??? ##??????????????? | | ??????????# k ??????????????? | | ?????????? ???????????????? | | ??????????# ???????????????? | | ??????????# """ """????????????????? | | ??????????# """ """ !! #??????????? | | ??????????+ """ """ !! #??????????? | | ??????????# ??????????????? | | ??????????# ??????????????????? | | ??????????# @k#?????????????????????? | | ??????????# #?????????????????????? | | ??????????# #?????????????????????? | | ??????????# #?????????????????????? | | ??????????#^ t^#?????????????????????? | | ??????????# #?????????????????????? | | ??????##### #?????????????????????? | | ??????# #####+################# | | ??????# | | ??????# g | | ??????# g % """ "" | | ??????# ################# """ "" | | ######## g #???????????????# """ "" | | # # g #???????????????# """ "" | | # """ / #???????????????# | | # """ # #???????????????# | | # """ # #####???????????# ###### | | # # #???????????# #????? | | # # #???????????# #????? | | ######## #???????????# #????? | | ???########## #???????????# #????# | | ???# # #???????????# #?? # | | ???# !! # #???????????# # "" # | | ???# ! # #???????????# / "T / | | ???# / #???????????# # "" # | +----------------------------------------------------+ Best States ------------- Heat Dissipation 25 Energy Generation 10 Energy Capacity 250 Matter Stores 300 Matter Capacity 300 Sight Range 16 Terrain Scan Density 10 Armor Coverage 150 Evasion (%) 50 Item Schematics ----------------- None Robot Schematics ------------------ None Fabricated ------------ Nothing Alien Tech Used ----------------- None Achievements -------------- None Challenges ------------ None Game ------ Seed ArcIonImmobilizer Manual? 0 Play Time 00:18:11 Cumulative 5.0 hours Start 2019.10.24 @ 15:03:53 End 2019.10.24 @ 15:18:47 Sessions 1 Manual Loads 0 Difficulty Rogue Special Mode None Game No. 8 Rogue 8 Adventurer 0 Explorer 0 Win Type - Total 0 Types 0/0/0/0/0/0/0 Lore% 2 Gallery% 9 Achievement% 3 Wizard Run 0 Options --------- ASCII 0 Keyboard 0 Movement Numpad Keybinds 0 Fullscreen 1 Font 18/Terminus Map View 76x50 Tactical HUD 1 Map Filters NONE Filters NONE Steam 1 RUN: 423128ef-e3e9-4d37-b5ab-e68342940d17